fUST/lending_fUST_20240605
["ID","MTS","AMOUNT","RATE_DAILY","PERIOD"]
[328583789,1717570233240,-151.0,0.0002,2]
[328583790,1717570233250,-253.712921,0.0002,2]
[328583791,1717570233259,-253.712921,0.0002,2]
[328583792,1717570233270,-1500.0,0.0002,2]
[328583793,1717570233279,-151.0,0.00020119,2]
[328583794,1717570233288,-151.0,0.00020119,2]
[328583795,1717570233296,-169.423373,0.00020119,2]
[328583796,1717570233305,-151.0,0.00020119,2]
[328583797,1717570233314,-151.0,0.00020119,2]
[328583798,1717570233324,-151.0,0.00020119,2]
[328583799,1717570233333,-188.297997,0.00020119,2]
[328583800,1717570233343,-188.297997,0.00020119,2]
[328583801,1717570233354,-380.832967,0.00020119,2]
[328583802,1717570233363,-380.832967,0.00020119,2]
[328583803,1717570233373,-528.67913693,0.00020119,4]
[328583804,1717570233382,-597.56625945,0.00020844,2]
[328583805,1717570233391,-150.44771377,0.00021463,2]
[328583806,1717570233400,-253.712921,0.00021511,2]
[328583807,1717570233410,-253.712921,0.00021511,2]
[328583808,1717570233419,-673.990861,0.00021511,2]
[328583809,1717570233428,-673.990861,0.00021511,2]
[328583810,1717570233437,-151.0,0.00021511,2]
[328583811,1717570233446,-151.0,0.00021511,2]
[328583812,1717570233455,-4235.50878984,0.00021567,2]
[328583813,1717570233464,-597.56625945,0.00021817,2]
[328583814,1717570233473,-225.02004134,0.00021898,2]
[328583815,1717570233483,-461.97329918,0.00021898,2]
[328583816,1717570233492,-210.0,0.00021916,2]
[328583817,1717570233501,-210.51403812,0.00021916,2]
[328583818,1717570233510,-506.20860188,0.00021917,2]
[328583819,1717570233520,-500.0,0.00021917,2]
[328583820,1717570233529,-500.0,0.00021917,2]
[328583821,1717570233539,-500.0,0.00021917,2]
[328583822,1717570233549,-151.0,0.00021917,2]
[328583823,1717570233560,-151.0,0.00021917,2]
[328583824,1717570233569,-151.0,0.00021917,2]
[328583825,1717570233578,-473.9081828,0.00021917,2]
[328583826,1717570233589,-500.0,0.00021917,2]
[328583827,1717570233598,-151.0,0.00021917,2]
[328583828,1717570233607,-151.0,0.00021917,2]
[328583829,1717570233616,-500.0,0.00021917,2]
[328583830,1717570233625,-500.0,0.00021917,2]
[328583831,1717570233635,-500.0,0.00021917,2]
[328583832,1717570233646,-500.0,0.00021917,2]
[328583833,1717570233657,-151.0,0.00021917,2]
[328583834,1717570233666,-151.0,0.00021917,2]
[328583835,1717570233676,-151.0,0.00021917,2]
[328583836,1717570233686,-500.0,0.00021917,2]
[328583837,1717570233695,-500.0,0.00021917,2]
[328583838,1717570233704,-500.0,0.00021917,2]
[328583839,1717570233716,-151.0,0.00021917,2]
[328583840,1717570233726,-151.0,0.00021917,2]
[328583841,1717570233735,-500.0,0.00021917,2]
[328583842,1717570233744,-151.0,0.00021917,2]
[328583843,1717570233753,-151.0,0.00021917,2]
[328583844,1717570233763,-151.0,0.00021917,2]
[328583845,1717570233772,-500.0,0.00021917,2]
[328583846,1717570233781,-151.212721,0.00021917,2]
[328583847,1717570233790,-500.0,0.00021917,2]
[328583848,1717570233799,-500.0,0.00021917,2]
[328583849,1717570233808,-232.807367,0.00021917,2]
[328583850,1717570233817,-151.0,0.00021917,2]
[328583851,1717570233827,-151.0,0.00021917,2]
[328583852,1717570233839,-151.0,0.00021917,2]
[328583853,1717570233849,-151.703261,0.00021917,2]
[328583854,1717570233858,-151.0,0.00021917,2]
[328583855,1717570233868,-500.0,0.00021917,2]
[328583856,1717570233877,-500.0,0.00021917,2]
[328583857,1717570233886,-151.0,0.00021917,2]
[328583858,1717570233895,-146.3445855,0.00021917,2]
[328583884,1717570239003,-500.0,0.00020118,2]
[328583885,1717570239014,-500.0,0.00020118,2]
[328583886,1717570239023,-500.0,0.00020118,2]
[328583887,1717570239034,-500.0,0.00020118,2]
[328583888,1717570239044,-500.0,0.00020118,2]
[328583889,1717570239055,-500.0,0.00020118,2]
[328583890,1717570239065,-500.0,0.00020118,2]
[328583891,1717570239075,-500.0,0.00020118,2]
[328583892,1717570239085,-500.0,0.00020118,2]
[328583893,1717570239096,-500.0,0.00020118,2]
[328583894,1717570239106,-500.0,0.00020118,2]
[328583895,1717570239115,-500.0,0.00020118,2]
[328583896,1717570239125,-500.0,0.00020118,2]
[328583897,1717570239135,-500.0,0.00020118,2]
[328583898,1717570239144,-500.0,0.00020118,2]
[328583899,1717570239154,-500.0,0.00020118,2]
[328583900,1717570239164,-500.0,0.00020118,2]
[328583901,1717570239174,-500.0,0.00020118,2]
[328583902,1717570239183,-500.0,0.00020118,2]
[328583903,1717570239193,-500.0,0.00020118,2]
[328583904,1717570239202,-333.05526244,0.00020118,2]
[328583905,1717570239215,-166.94473756,0.00020118,2]
[328583906,1717570239225,-598.39208379,0.00020118,2]
[328583907,1717570239234,-500.0,0.00020118,2]
[328583908,1717570239244,-500.0,0.00020118,2]
[328583909,1717570239254,-500.0,0.00020118,2]
[328583910,1717570239263,-500.0,0.00020118,2]
[328583911,1717570239273,-500.0,0.00020118,2]
[328583912,1717570239283,-500.0,0.00020118,2]
[328583913,1717570239292,-500.0,0.00020118,2]
[328583914,1717570239302,-500.0,0.00020118,2]
[328583915,1717570239311,-500.0,0.00020118,2]
[328583916,1717570239321,-500.0,0.00020118,2]
[328583917,1717570239331,-500.0,0.00020118,2]
[328583918,1717570239340,-500.0,0.00020118,2]
[328583919,1717570239353,-500.0,0.00020118,2]
[328583920,1717570239362,-500.0,0.00020118,2]
[328583921,1717570239372,-500.0,0.00020118,2]
[328583922,1717570239381,-500.0,0.00020118,2]
[328583923,1717570239390,-353.6554145,0.00021917,2]
[328583924,1717570239400,-500.0,0.00021917,2]
[328583925,1717570239409,-151.0,0.00021917,2]
[328583926,1717570239419,-151.0,0.00021917,2]
[328583927,1717570239428,-151.0,0.00021917,2]
[328583928,1717570239437,-151.0,0.00021917,2]
[328583929,1717570239448,-151.0,0.00021917,2]
[328583930,1717570239457,-210.029818,0.00021917,2]
[328583931,1717570239467,-500.0,0.00021917,2]
[328583932,1717570239475,-500.0,0.00021917,2]
[328583933,1717570239484,-500.0,0.00021917,2]
[328583934,1717570239494,-253.712921,0.00021917,2]
[328583935,1717570239504,-253.712921,0.00021917,2]
[328583936,1717570239513,-253.712921,0.00021917,2]
[328583937,1717570239523,-253.712921,0.00021917,2]
[328583938,1717570239532,-500.0,0.00021917,2]
[328583939,1717570239541,-253.712921,0.00021917,2]
[328583940,1717570239550,-253.712921,0.00021917,2]
[328583941,1717570239561,-253.712921,0.00021917,2]
[328583942,1717570239571,-253.712921,0.00021917,2]
[328583943,1717570239580,-500.0,0.00021917,2]
[328583944,1717570239590,-500.0,0.00021917,2]
[328583945,1717570239602,-939.79,0.00021917,2]
[328583946,1717570239612,-500.0,0.00021917,2]
[328583947,1717570239621,-500.0,0.00021917,2]
[328583948,1717570239631,-500.0,0.00021917,2]
[328583949,1717570239643,-500.0,0.00021917,2]
[328583950,1717570239653,-500.0,0.00021917,2]
[328583951,1717570239663,-500.0,0.00021917,2]
[328583952,1717570239673,-500.0,0.00021917,2]
[328583953,1717570239682,-1006.06,0.00021917,2]
[328583954,1717570239692,-500.0,0.00021917,2]
[328583955,1717570239701,-500.0,0.00021917,2]
[328583956,1717570239713,-500.0,0.00021917,2]
[328583957,1717570239724,-500.0,0.00021917,2]
[328583958,1717570239734,-500.0,0.00021917,2]
[328583959,1717570239743,-673.990861,0.00021917,2]
[328583960,1717570239752,-500.0,0.00021917,2]
[328583961,1717570239762,-673.990861,0.00021917,2]
[328583962,1717570239771,-673.990861,0.00021917,2]
[328583963,1717570239780,-673.990861,0.00021917,2]
[328583964,1717570239790,-500.0,0.00021917,2]
[328583965,1717570239800,-500.0,0.00021917,2]
[328583966,1717570239809,-500.0,0.00021917,2]
[328583967,1717570239819,-673.990861,0.00021917,2]
[328583968,1717570239829,-673.990861,0.00021917,2]
[328583969,1717570239838,-673.990861,0.00021917,2]
[328583970,1717570239849,-623.43954947,0.00021917,2]
[328583971,1717570239863,-50.55131153,0.00021917,2]
[328583972,1717570239872,-500.0,0.00021917,2]
[328583973,1717570239882,-151.0,0.00021917,2]
[328583974,1717570239891,-151.0,0.00021917,2]
[328583975,1717570239901,-151.0,0.00021917,2]
[328583976,1717570239910,-151.0,0.00021917,2]
[328583977,1717570239919,-151.0,0.00021917,2]
[328583978,1717570239929,-151.0,0.00021917,2]
[328583979,1717570239938,-151.0,0.00021917,2]
[328583980,1717570239947,-151.0,0.00021917,2]
[328583981,1717570239956,-151.0,0.00021917,2]
[328583982,1717570239965,-151.0,0.00021917,2]
[328583983,1717570239975,-151.0,0.00021917,2]
[328583984,1717570239984,-151.0,0.00021917,2]
[328583985,1717570239993,-151.0,0.00021917,2]
[328583986,1717570240003,-151.0,0.00021917,2]
[328583987,1717570240013,-151.0,0.00021917,2]
[328583988,1717570240023,-239.107231,0.00021917,2]
[328583989,1717570240032,-500.0,0.00021917,2]
[328583990,1717570240042,-328.13748747,0.00021917,2]
[328583991,1717570240054,-171.86251253,0.00021917,2]
[328583992,1717570240064,-500.0,0.00021917,2]
[328583993,1717570240074,-500.0,0.00021917,2]
[328583994,1717570240084,-500.0,0.00021917,2]
[328583995,1717570240093,-244.612869,0.00021917,2]
[328583996,1717570240108,-255.387131,0.00021917,2]
[328583997,1717570240118,-500.0,0.00021917,2]
[328583998,1717570240128,-500.0,0.00021917,2]
[328583999,1717570240138,-505.92202077,0.00021917,2]
[328584000,1717570240148,-500.0,0.00021917,2]
[328584001,1717570240158,-43.23823144,0.00021917,2]
[328584176,1717570334980,10000.0,0.0001,5]
[328584177,1717570459170,659.5511508,9.999e-05,2]
[328584178,1717570476900,154.95351395,9.999e-05,2]
[328584199,1717571139379,154.95351395,9.999e-05,2]
[328584200,1717571144414,272.3727093,9.999e-05,2]
[328584201,1717571144603,1902.59600445,9.999e-05,2]
[328584202,1717571170709,154.95351395,9.999e-05,2]
[328584203,1717571225136,-3069.90171711,0.00016521,2]
[328584204,1717571225156,-2896.3063729,0.00016522,2]
[328584205,1717571225179,-276.40087614,0.0001723,2]
[328584211,1717571323511,923.52744316,0.00014,2]
[328584213,1717571341324,284.3738385,0.000137,2]
[328584215,1717571351120,-2035.47539269,0.00017222,2]
[328584216,1717571351140,-2685.70661711,0.00017223,2]
[328584217,1717571351160,-23215.4448538,0.00017226,2]
[328584218,1717571351178,-10258.47986232,0.0001723,2]
[328584219,1717571351198,-945.1819549,0.00017236,2]
[328584220,1717571353006,568.44231144,0.00017221,2]
[328584229,1717571404993,271.04591959,9.999e-05,2]
[328584289,1717571433112,-659.5511508,0.00017659,2]
[328584290,1717571433121,-732.720843,0.0001766,2]
[328584291,1717571433130,-1123.7828513,0.00018535,2]
[328584360,1717571443355,-23776.2171487,0.00018535,2]
[328584361,1717571443365,-1241.48138959,0.000189,2]
[328584362,1717571443376,-500.0,0.00019178,2]
[328584363,1717571443385,-500.0,0.00019178,2]
[328584364,1717571443394,-500.0,0.00019178,2]
[328584365,1717571443403,-500.0,0.00019178,2]
[328584366,1717571443412,-500.0,0.00019178,2]
[328584367,1717571443422,-500.0,0.00019178,2]
[328584368,1717571443433,-500.0,0.00019178,2]
[328584369,1717571443442,-500.0,0.00019178,2]
[328584370,1717571443452,-500.0,0.00019178,2]
[328584371,1717571443461,-500.0,0.00019178,2]
[328584372,1717571443471,-500.0,0.00019178,2]
[328584373,1717571443480,-500.0,0.00019178,2]
[328584374,1717571443490,-500.0,0.00019178,2]
[328584375,1717571443499,-500.0,0.00019178,2]
[328584376,1717571443508,-500.0,0.00019178,2]
[328584377,1717571443518,-500.0,0.00019178,2]
[328584378,1717571443527,-500.0,0.00019178,2]
[328584379,1717571443537,-500.0,0.00019178,2]
[328584380,1717571443546,-500.0,0.00019178,2]
[328584381,1717571443557,-500.0,0.00019178,2]
[328584382,1717571443566,-500.0,0.00019178,2]
[328584383,1717571443575,-500.0,0.00019178,2]
[328584384,1717571443587,-500.0,0.00019178,2]
[328584385,1717571443597,-500.0,0.00019178,2]
[328584386,1717571443606,-500.0,0.00019178,2]
[328584387,1717571443615,-500.0,0.00019178,2]
[328584388,1717571443626,-500.0,0.00019178,2]
[328584389,1717571443635,-500.0,0.00019178,2]
[328584390,1717571443644,-500.0,0.00019178,2]
[328584391,1717571443653,-500.0,0.00019178,2]
[328584392,1717571443662,-500.0,0.00019178,2]
[328584393,1717571443671,-500.0,0.00019178,2]
[328584394,1717571443680,-500.0,0.00019178,2]
[328584395,1717571443689,-500.0,0.00019178,2]
[328584396,1717571443699,-500.0,0.00019178,2]
[328584397,1717571443708,-500.0,0.00019178,2]
[328584398,1717571443717,-500.0,0.00019178,2]
[328584399,1717571443726,-500.0,0.00019178,2]
[328584400,1717571443736,-500.0,0.00019178,2]
[328584401,1717571443745,-500.0,0.00019178,2]
[328584402,1717571443754,-500.0,0.00019178,2]
[328584403,1717571443764,-267.89988248,0.00019178,2]
[328584406,1717571443776,-232.10011752,0.00019178,2]
[328584407,1717571443785,-500.0,0.00019178,2]
[328584409,1717571443794,-500.0,0.00019178,2]
[328584412,1717571443804,-500.0,0.00019178,2]
[328584413,1717571443815,-169.67931646,0.00019178,2]
[328584415,1717571443824,-500.0,0.00019178,2]
[328584417,1717571443833,-500.0,0.00019178,2]
[328584419,1717571443842,-500.0,0.00019178,2]
[328584421,1717571443851,-500.0,0.00019178,2]
[328584423,1717571443860,-500.0,0.00019178,2]
[328584425,1717571443869,-500.0,0.00019178,2]
[328584427,1717571443879,-500.0,0.00019178,2]
[328584429,1717571443888,-500.0,0.00019178,2]
[328584431,1717571443897,-500.0,0.00019178,2]
[328584433,1717571443909,-500.0,0.00019178,2]
[328584435,1717571443919,-500.0,0.00019178,2]
[328584437,1717571443928,-416.96793164,0.00019178,2]
[328584439,1717571443938,-500.0,0.00019178,2]
[328584441,1717571443947,-500.0,0.00019178,2]
[328584443,1717571443955,-500.0,0.00019178,2]
[328584445,1717571443964,-500.0,0.00019178,2]
[328584447,1717571443973,-500.0,0.00019178,2]
[328584449,1717571443983,-500.0,0.00019178,2]
[328584450,1717571443993,-500.0,0.00019178,2]
[328584452,1717571444003,-500.0,0.00019178,2]
[328584454,1717571444012,-500.0,0.00019178,2]
[328584456,1717571444022,-500.0,0.00019178,2]
[328584458,1717571444031,-167.967041,0.00019178,2]
[328584460,1717571444040,-435.0,0.0002,2]
[328584462,1717571444049,-1354.21950592,0.0002018,2]
[328584464,1717571444058,-1454.92346942,0.00020998,3]
[328584467,1717571444067,-272.3727093,0.00020999,2]
[328584468,1717571444076,-7366.84033526,0.00021,2]
[328584471,1717571444086,-1827.285119,0.000216,2]
[328584473,1717571444094,-435.48257567,0.00021754,2]
[328584474,1717571444104,-422.5665863,0.00021779,2]
[328584476,1717571444113,-337.09288599,0.00021779,2]
[328584478,1717571444122,-500.0,0.00021779,2]
[328584480,1717571444131,-500.0,0.00021779,2]
[328584482,1717571444140,-553.80228723,0.00021779,2]
[328584484,1717571444149,-500.0,0.00021779,2]
[328584486,1717571444158,-457.76826908,0.00021779,2]
[328584488,1717571444167,-293.37076695,0.00021779,2]
[328584490,1717571444176,-23687.31108326,0.0002178,2]
[328584494,1717571444196,-603.98478864,0.0002178,2]
[328584527,1717571446685,-318.41271715,0.0002178,2]
[328584530,1717571447457,-598.30034209,0.0002178,2]
[328584531,1717571447897,-155.43532915,0.0002178,2]
[328584533,1717571501298,310.303872,9.999e-05,2]
[328584535,1717571524540,1281.11111819,9.999e-05,2]
[328584536,1717571542338,1099.91705711,0.00015,2]
[328584537,1717571839909,1139.07338121,0.0001,2]
[328584538,1717572393128,-923.52744316,0.0001561,2]
[328584539,1717572393150,-738.32033357,0.0001561,2]
[328584540,1717572442096,-154.95351395,0.00015607,2]
[328584541,1717572442115,-628.66923915,0.00015607,2]
[328584542,1717572471308,154.95351395,9.999e-05,2]
[328584547,1717572559092,-2035.47539269,0.00015602,2]
[328584548,1717572559113,-272.3727093,0.00015603,2]
[328584549,1717572559133,-1338.82129801,0.00015603,2]
[328584550,1717572560138,-6574.55274544,0.00015603,2]
[328584551,1717572560159,-568.44231144,0.00015604,2]
[328584552,1717572560180,-51587.058811,0.00015604,2]
[328584553,1717572568186,-11108.7815,0.00015602,2]
[328584554,1717572571152,-8186.93397601,0.00015602,2]
[328584555,1717572571173,-7952.37262647,0.00015604,2]
[328584556,1717572571194,-2685.70661711,0.00015609,2]
[328584557,1717572571216,-170.4972372,0.00015612,2]
[328584558,1717572571236,-1902.59600445,0.00015711,2]
[328584559,1717572571261,-13378.8521413,0.00015712,2]
[328584560,1717572571282,-667.09786,0.00016716,2]
[328584561,1717572571303,-170.49723717,0.00017163,2]
[328584613,1717572632178,-394.3509307,0.00017798,2]
[328584614,1717572632188,-263.12636468,0.00017875,2]
[328584615,1717572632197,-170.49723717,0.00018715,2]
[328584616,1717572632206,-525.38082028,0.00018749,2]
[328584617,1717572632215,-16999.34130905,0.00018827,2]
[328584620,1717572632247,-17767.10961475,0.00018827,2]
[328584622,1717572632256,-1075.60799539,0.000189,2]
[328584623,1717572632266,-516.42830109,0.00019178,2]
[328584625,1717572632277,-516.42830109,0.00019178,2]
[328584627,1717572632287,-516.42830109,0.00019178,2]
[328584629,1717572632295,-516.42830109,0.00019178,2]
[328584630,1717572632305,-516.42830109,0.00019178,2]
[328584632,1717572632314,-516.42830109,0.00019178,2]
[328584634,1717572632324,-516.42830109,0.00019178,2]
[328584636,1717572632333,-516.42830109,0.00019178,2]
[328584637,1717572632344,-516.42830109,0.00019178,2]
[328584638,1717572632354,-516.42830109,0.00019178,2]
[328584639,1717572632365,-516.42830109,0.00019178,2]
[328584640,1717572632374,-516.42830109,0.00019178,2]
[328584641,1717572632383,-516.42830109,0.00019178,2]
[328584642,1717572632393,-516.42830109,0.00019178,2]
[328584643,1717572632402,-516.42830109,0.00019178,2]
[328584644,1717572632411,-516.42830109,0.00019178,2]
[328584645,1717572632420,-516.42830109,0.00019178,2]
[328584646,1717572632429,-516.42830109,0.00019178,2]
[328584647,1717572632439,-516.42830109,0.00019178,2]
[328584648,1717572632448,-516.42830109,0.00019178,2]
[328584649,1717572632457,-516.42830109,0.00019178,2]
[328584650,1717572632466,-516.42830109,0.00019178,2]
[328584651,1717572632475,-516.42830109,0.00019178,2]
[328584652,1717572632484,-516.42830109,0.00019178,2]
[328584653,1717572632492,-516.42830109,0.00019178,2]
[328584654,1717572632501,-516.42830109,0.00019178,2]
[328584655,1717572632510,-516.42830109,0.00019178,2]
[328584656,1717572632520,-516.42830109,0.00019178,2]
[328584657,1717572632529,-516.42830109,0.00019178,2]
[328584658,1717572632537,-516.42830109,0.00019178,2]
[328584659,1717572632546,-516.42830109,0.00019178,2]
[328584660,1717572632555,-516.42830109,0.00019178,2]
[328584661,1717572632566,-516.42830109,0.00019178,2]
[328584662,1717572632578,-516.42830109,0.00019178,2]
[328584663,1717572632587,-516.42830109,0.00019178,2]
[328584664,1717572632597,-516.42830109,0.00019178,2]
[328584665,1717572632606,-516.42830109,0.00019178,2]
[328584666,1717572632616,-516.42830109,0.00019178,2]
[328584667,1717572632627,-516.42830109,0.00019178,2]
[328584668,1717572632636,-516.42830109,0.00019178,2]
[328584669,1717572632645,-516.42830109,0.00019178,2]
[328584670,1717572632654,-516.42830109,0.00019178,2]
[328584671,1717572632664,-516.42830109,0.00019178,2]
[328584672,1717572632674,-516.42830109,0.00019178,2]
[328584673,1717572632684,-516.42830109,0.00019178,2]
[328584674,1717572632694,-516.42830109,0.00019178,2]
[328584675,1717572632703,-516.42830109,0.00019178,2]
[328584676,1717572632712,-516.42830109,0.00019178,2]
[328584677,1717572632721,-516.42830109,0.00019178,2]
[328584678,1717572632731,-516.42830109,0.00019178,2]
[328584679,1717572632740,-516.42830109,0.00019178,2]
[328584680,1717572632749,-516.42830109,0.00019178,2]
[328584681,1717572632758,-515.03254892,0.00019178,2]
[328584682,1717572632768,-515.03254892,0.00019178,2]
[328584683,1717572632777,-515.03254892,0.00019178,2]
[328584684,1717572632785,-515.03254892,0.00019178,2]
[328584685,1717572632794,-515.03254892,0.00019178,2]
[328584686,1717572632803,-515.03254892,0.00019178,2]
[328584687,1717572632812,-515.03254892,0.00019178,2]
[328584688,1717572632821,-515.03254892,0.00019178,2]
[328584689,1717572632830,-515.03254892,0.00019178,2]
[328584690,1717572632839,-515.03254892,0.00019178,2]
[328584691,1717572632850,-515.03254892,0.00019178,2]
[328584692,1717572632859,-515.03254892,0.00019178,2]
[328584693,1717572632869,-515.03254892,0.00019178,2]
[328584694,1717572632879,-515.03254892,0.00019178,2]
[328584695,1717572632888,-515.03254892,0.00019178,2]
[328584696,1717572632898,-515.03254892,0.00019178,2]
[328584697,1717572632907,-515.03254892,0.00019178,2]
[328584698,1717572632917,-515.03254892,0.00019178,2]
[328584699,1717572632926,-515.03254892,0.00019178,2]
[328584700,1717572632935,-515.03254892,0.00019178,2]
[328584701,1717572632944,-515.03254892,0.00019178,2]
[328584702,1717572632953,-515.03254892,0.00019178,2]
[328584703,1717572632962,-515.03254892,0.00019178,2]
[328584704,1717572632972,-515.03254892,0.00019178,2]
[328584705,1717572632981,-515.03254892,0.00019178,2]
[328584706,1717572632990,-515.03254892,0.00019178,2]
[328584707,1717572632999,-515.03254892,0.00019178,2]
[328584708,1717572633008,-515.03254892,0.00019178,2]
[328584709,1717572633017,-515.03254892,0.00019178,2]
[328584710,1717572633026,-515.03254892,0.00019178,2]
[328584711,1717572633035,-515.03254892,0.00019178,2]
[328584712,1717572633044,-515.03254892,0.00019178,2]
[328584713,1717572633053,-515.03254892,0.00019178,2]
[328584714,1717572633063,-517.89384087,0.00019178,2]
[328584715,1717572633072,-517.89384087,0.00019178,2]
[328584716,1717572633082,-517.89384087,0.00019178,2]
[328584717,1717572633090,-517.89384087,0.00019178,2]
[328584718,1717572633100,-517.89384087,0.00019178,2]
[328584719,1717572633109,-324.674444,0.00019178,2]
[328584720,1717572633118,-324.674444,0.00019178,2]
[328584721,1717572633129,-312.49626839,0.00019178,2]
[328584722,1717572633138,-505.325936,0.00019178,2]
[328584723,1717572633147,-151.0,0.00019178,2]
[328584724,1717572633156,-505.325936,0.00019178,2]
[328584725,1717572633165,-151.0,0.00019178,2]
[328584726,1717572633175,-151.0,0.00019178,2]
[328584727,1717572633184,-151.0,0.00019178,2]
[328584728,1717572633194,-151.0,0.00019178,2]
[328584729,1717572633203,-239.430358,0.00019178,2]
[328584730,1717572633212,-239.430358,0.00019178,2]
[328584731,1717572633221,-495.91381,0.00019178,2]
[328584732,1717572633231,-495.91381,0.00019178,2]
[328584733,1717572633240,-166.349385,0.00019178,2]
[328584734,1717572633249,-167.967041,0.00019178,2]
[328584735,1717572633259,-2683.57194169,0.0002,2]
[328584736,1717572633275,-1025.82261884,0.0002,2]
[328584737,1717572633285,-1354.21950592,0.0002,2]
[328584738,1717572633294,-72.96073128,0.0002,2]
[328584743,1717572638021,-78.03926872,0.0002,2]
[328584744,1717572638031,-151.0,0.0002,2]
[328584746,1717572638041,-239.430358,0.0002,2]
[328584748,1717572638050,-239.430358,0.0002,2]
[328584750,1717572638060,-495.91381,0.0002,2]
[328584751,1717572638070,-495.91381,0.0002,2]
[328584752,1717572638079,-170.49723717,0.00020266,2]
[328584753,1717572638089,-500.0,0.00020997,2]
[328584754,1717572638098,-237.34383739,0.00020997,2]
[328584755,1717572638107,-500.0,0.00020997,2]
[328584756,1717572638116,-300.0,0.00020997,2]
[328584757,1717572638126,-232.67230068,0.00020997,2]
[328584758,1717572638136,-777.49231004,0.00020998,2]
[328584759,1717572638148,-4018.98882975,0.00020998,2]
[328584760,1717572638160,-1494.53827774,0.00020998,2]
[328584761,1717572638171,-2089.20810107,0.00020998,2]
[328584762,1717572638182,-1661.72303914,0.00020998,2]
[328584763,1717572639772,-2410.81270733,0.00020998,2]
[328584764,1717572639885,-341.51697593,0.00020998,2]
[328584884,1717572642792,-19391.22112671,0.00020998,2]
[328584885,1717572642802,-1000.0,0.00021,4]
[328584886,1717572642811,-208.175838,0.00021,2]
[328584887,1717572642821,-151.0,0.00021,2]
[328584888,1717572642830,-196.034005,0.00021,2]
[328584889,1717572642840,-151.0,0.00021,2]
[328584890,1717572642849,-151.0,0.00021,2]
[328584892,1717572642859,-151.0,0.00021,2]
[328584893,1717572642868,-151.0,0.00021,2]
[328584894,1717572642877,-151.0,0.00021,2]
[328584895,1717572642888,-151.0,0.00021,2]
[328584896,1717572642897,-151.0,0.00021,2]
[328584898,1717572642907,-324.674444,0.00021,2]
[328584899,1717572642916,-324.674444,0.00021,2]
[328584900,1717572642925,-7366.84033526,0.00021,2]
[328584901,1717572642934,-2071.63731922,0.00021079,2]
[328584902,1717572642944,-505.325936,0.0002108,2]
[328584903,1717572642953,-505.325936,0.0002108,2]
[328584904,1717572642963,-201.059795,0.0002108,2]
[328584905,1717572642972,-151.0,0.0002108,2]
[328584906,1717572642981,-151.0,0.0002108,2]
[328584907,1717572642990,-2303.57475954,0.00021523,2]
[328584908,1717572643000,-26.90008892,0.00021697,2]
[328584910,1717572643012,-125.72536329,0.00021697,2]
[328584912,1717572643021,-10509.84406463,0.0002178,7]
[328584914,1717572643032,-1059.58761447,0.0002178,7]
[328584915,1717572643043,-2939.24571115,0.0002178,7]
[328584924,1717572643919,-5553.30666602,0.0002178,7]
[328584925,1717572643930,-225.02004134,0.0002178,2]
[328584926,1717572643939,-12845.1977116,0.0002178,2]
[328584927,1717572643948,-461.97329918,0.0002178,2]
[328584928,1717572643957,-179.917725,0.0002178,2]
[328584929,1717572643966,-154.872956,0.0002178,2]
[328584930,1717572643975,-152.669818,0.0002178,2]
[328584931,1717572643985,-153.849481,0.0002178,2]
[328584932,1717572643994,-152.223058,0.0002178,2]
[328584933,1717572644003,-151.0,0.0002178,2]
[328584934,1717572644013,-151.0,0.0002178,2]